bitfinex-derivatives/quotes_ETHF0:USTF0_20241228
["timestamp","ask_amount","ask_price","bid_price","bid_amount"]
[1735396942091,0.29721,3370.3,3370.2,0.29721]
[1735396942491,1.2989,3370.6,3370.5,0.29719]
[1735396942987,3.2078,3370.9,3370.4,3.2078]
[1735396943288,3.2078,3370.9,3370.8,0.29716]
[1735396944291,3.50495,3370.9,3370.8,0.29716]
[1735396944881,3.2078,3370.9,3370.8,0.29716]
[1735396945186,6.64878384,3371.7,3371.6,0.29709]
[1735396945187,4.60106384,3371.7,3371.6,0.29709]
[1735396945789,4.60106384,3372.0,3371.4,3.26477]
[1735396945992,4.60106384,3372.0,3371.9,0.29707]
[1735396946194,4.89812384,3372.0,3371.9,0.29707]
[1735396946396,4.60106384,3372.0,3371.6,3.2078]
[1735396946689,0.29708,3371.7,3371.6,3.50489]
[1735396946997,0.29708,3371.8,3371.7,0.29708]
[1735396947385,0.29708,3371.7,3371.6,3.50489]
[1735396947582,0.29708,3371.7,3371.6,0.29709]
[1735396948293,0.29711,3371.4,3371.3,3.2078]
[1735396948495,0.29711,3371.4,3371.3,3.50492]
[1735396948989,0.29711,3371.4,3371.3,3.2078]
[1735396949385,2.0139871,3371.5,3370.9,0.29716]
[1735396949584,2.0139871,3371.5,3370.8,1.207]
[1735396949585,0.7428,3371.4,3370.8,1.50417]
[1735396949793,0.29717,3370.8,3370.7,3.2078]
[1735396950594,1.3318,3370.9,3370.0,1.207]
[1735396950898,1.3318,3370.9,3370.2,0.29722]
[1735396950899,0.29722,3370.3,3370.2,0.29722]
[1735396951294,0.29725,3369.9,3369.8,3.2078]
[1735396952199,1.56526288,3370.0,3369.8,0.29725]
[1735396952587,1.86250288,3370.0,3369.9,0.29724]
[1735396952788,1.86247288,3370.3,3370.2,0.29722]
[1735396953090,1.56526288,3370.6,3370.2,3.2078]
[1735396953289,0.29718,3370.7,3370.2,3.2078]
[1735396953493,0.29718,3370.7,3370.6,0.29718]
[1735396956297,0.29718,3370.7,3370.2,3.2078]
[1735396956298,2.89706288,3370.9,3370.2,3.2078]
[1735396956499,0.29718,3370.7,3370.6,0.29718]
[1735396956998,0.29717,3370.8,3370.7,0.29717]
[1735396957803,1.56526288,3370.9,3370.2,3.2078]
[1735396958202,0.29718,3370.7,3370.6,0.29718]
[1735396958600,0.29718,3370.6,3370.5,0.29718]
[1735396959101,0.74291,3370.8,3370.2,3.2078]
[1735396959305,0.74291,3370.8,3370.3,0.2972]
[1735396959509,0.29719,3370.6,3370.5,0.29719]
[1735396960010,0.29719,3370.6,3370.2,3.2078]
[1735396960011,3.2078,3371.0,3370.2,3.2078]
[1735396960209,3.50495,3371.0,3370.9,0.29715]
[1735396960795,0.29717,3370.8,3370.7,0.29717]
[1735396961204,1.56526288,3370.9,3370.2,3.2078]
[1735396961510,0.29719,3370.5,3370.4,0.29719]
[1735396962003,0.29719,3370.6,3370.5,0.29719]
[1735396962602,0.29721,3370.3,3370.2,3.50501]
[1735396963502,0.29721,3370.3,3370.2,0.29721]
[1735396966105,1.56526288,3370.3,3369.7,2.5349]
[1735396966304,4.4826,3370.6,3370.4,0.29719]
[1735396966305,0.2972,3370.5,3370.4,0.29719]
[1735396966510,3.2078,3370.6,3370.5,0.29719]
[1735396966913,0.29717,3370.7,3370.6,0.29718]
[1735396967204,3.2078,3371.0,3370.5,0.74298]
[1735396967405,3.2078,3371.0,3370.9,0.29715]
[1735396968004,4.89819384,3371.2,3371.1,0.29714]
[1735396968513,1.56526288,3371.5,3370.6,3.22174]
[1735396968809,0.29712,3371.3,3371.2,0.29712]
[1735396969512,3.5049,3371.6,3371.5,0.2971]
[1735396970408,4.60106384,3371.8,3371.3,3.2078]
[1735396970609,4.60106384,3371.8,3371.7,3.50489]
[1735396972113,0.29707,3372.0,3371.9,0.29707]
[1735396972313,0.29706,3372.1,3372.0,0.29706]
[1735396972607,3.50483,3372.5,3372.4,0.29703]
[1735396972810,0.29703,3372.4,3372.3,0.29703]
[1735396973109,3.2078,3372.5,3371.8,0.74271]
[1735396973313,3.50482,3372.5,3372.4,0.29702]
[1735396973908,3.2078,3372.5,3371.9,1.2903]
[1735396974113,0.29702,3372.4,3372.1,0.29704]
[1735396974317,0.29702,3372.5,3372.3,0.29702]
[1735396974606,0.29703,3372.4,3372.3,0.29703]
[1735396975513,0.29701,3372.6,3372.5,0.29701]
[1735396975814,1.86226288,3372.7,3372.6,0.29701]
[1735396976517,0.29701,3372.6,3372.2,1.3016]
[1735396976816,0.29701,3372.6,3372.5,0.29701]
[1735396977114,1.86226288,3372.7,3372.6,0.29701]
[1735396977310,1.86226288,3372.7,3372.2,1.3016]
[1735396977512,3.2078,3372.9,3372.2,1.3016]
[1735396977810,0.29696,3373.2,3373.0,0.29696]
[1735396978309,6.19581384,3373.3,3373.1,0.29696]
[1735396978510,0.29696,3373.2,3373.1,0.29696]
[1735396978809,0.29696,3373.2,3372.6,4.4842]
[1735396979216,0.29696,3373.2,3373.0,0.29697]
[1735396979410,4.77306288,3373.9,3373.0,3.2078]
[1735396979610,4.77306288,3373.9,3373.2,0.29694]
[1735396979811,0.29694,3373.4,3373.2,0.29694]
[1735396980110,4.77306288,3373.9,3373.1,1.3082]
[1735396980310,0.29692,3373.6,3373.4,0.29694]
[1735396980511,0.29692,3373.7,3373.5,0.29692]
[1735396980807,0.29691,3373.7,3373.2,0.29695]
[1735396981008,1.56526288,3373.6,3373.1,1.3082]
[1735396981205,0.29695,3373.3,3373.1,1.3082]
[1735396981519,0.29694,3373.4,3373.2,0.29695]
[1735396982010,0.29693,3373.4,3373.2,0.29695]
[1735396982207,0.29694,3373.3,3373.2,0.29695]
[1735396982413,3.2078,3373.5,3373.4,0.29693]
[1735396982813,0.29691,3373.7,3373.6,0.29691]
[1735396983014,0.29693,3373.5,3373.4,0.29693]
[1735396983813,0.29692,3373.6,3373.1,1.3082]
[1735396984014,0.29691,3373.6,3373.5,0.29692]
[1735396984618,0.29693,3373.5,3373.4,0.29693]
[1735396985117,0.29691,3373.7,3373.6,0.2969]
[1735396985615,3.2078,3373.9,3373.8,0.29689]
[1735396986310,3.2078,3374.5,3373.5,1.56526288]
[1735396986516,3.50464,3374.5,3374.4,0.29684]
[1735396986812,4.77306288,3374.5,3373.7,3.2078]
[1735396987019,0.29687,3374.2,3374.1,0.29686]
[1735396987212,4.77306288,3374.5,3373.7,3.2078]
[1735396987418,0.29685,3374.3,3374.2,0.29685]
[1735396987619,4.77306288,3374.5,3373.7,3.95005]
[1735396987818,0.29686,3374.2,3374.1,0.29687]
[1735396988118,0.29684,3374.4,3374.3,0.29685]
[1735396988318,4.77306288,3374.5,3373.9,1.29]
[1735396988516,3.2078,3374.5,3373.9,1.29]
[1735396988820,3.2078,3374.5,3374.0,1.28570331]
[1735396989019,3.2078,3374.5,3374.1,0.6879]
[1735396989319,1.51542,3374.7,3374.6,0.29682]
[1735396989523,3.2078,3374.9,3374.1,3.8957]
[1735396989710,0.29681,3374.8,3374.7,0.29681]
[1735396989922,0.29681,3374.8,3374.2,1.03902]
[1735396990115,0.29681,3374.8,3374.6,0.29682]
[1735396990316,3.2078,3374.9,3374.1,3.8957]
[1735396990521,0.29682,3374.7,3374.6,0.29682]
[1735396991420,3.2078,3374.9,3374.1,3.8957]
[1735396991623,0.29682,3374.7,3374.6,0.29682]
[1735396992021,3.2078,3374.9,3374.1,3.8957]
[1735396992319,3.5046,3374.9,3374.8,0.29681]
[1735396992621,3.2078,3374.9,3374.8,0.29681]
[1735396992816,3.5046,3374.9,3374.8,0.29681]
[1735396993612,3.2078,3374.9,3374.2,0.74214]
[1735396993826,0.29684,3374.5,3374.2,0.29686]
[1735396994015,1.56526288,3374.7,3374.1,3.2078]
[1735396994220,0.29686,3374.2,3374.1,3.2078]
[1735396994923,0.29686,3374.2,3374.1,3.50467]
[1735396995121,0.7417,3374.5,3374.1,3.2078]
[1735396995422,0.29684,3374.5,3374.4,0.29684]
[1735396995613,0.29687,3374.2,3374.1,0.29687]
[1735396995812,0.29685,3374.4,3374.3,0.29685]
[1735396996013,1.56526288,3374.7,3374.0,2.02790331]
[1735396996215,0.7005,3374.8,3374.0,1.28570331]
[1735396996826,0.29686,3374.3,3374.2,0.29685]
[1735396998922,0.29685,3374.4,3374.3,0.29684]
[1735396999320,0.29684,3374.5,3374.4,0.29684]
[1735396999528,0.29682,3374.7,3374.6,0.29682]
[1735397000224,3.2078,3374.9,3374.8,0.29681]
[1735397002023,3.5046,3374.9,3374.8,0.29681]
[1735397002327,0.29681,3374.8,3374.7,0.692]
[1735397003215,5.0,3374.8,3373.9,3.2078]
[1735397003420,1.56526288,3374.7,3374.0,0.7422]
[1735397003621,0.29684,3374.5,3374.4,0.29684]
[1735397003823,0.29683,3374.6,3374.5,0.29682]
[1735397004525,0.29681,3374.8,3374.7,0.29681]
[1735397004724,0.29682,3374.7,3374.6,0.29682]
[1735397004922,3.5046,3374.9,3374.8,0.29681]
[1735397005131,3.2078,3374.9,3374.8,0.29681]
[1735397005823,3.5046,3374.9,3374.8,0.29681]
[1735397006418,0.29686,3374.3,3374.2,0.29685]
[1735397006621,4.77306288,3374.9,3374.0,0.7422]
[1735397006822,4.77306288,3374.9,3374.2,0.74216]
[1735397007023,0.29683,3374.6,3374.5,0.29683]
[1735397007424,3.2078,3374.9,3374.4,0.74211]
[1735397007627,3.5046,3374.9,3374.8,0.29681]
[1735397008223,0.29682,3374.8,3374.7,0.29681]
[1735397009828,0.29682,3374.8,3373.9,5.98022]
[1735397009829,4.77306288,3374.9,3373.9,3.2078]
[1735397010022,0.74206,3374.7,3374.0,0.37117529]
[1735397010227,0.29686,3374.3,3374.2,0.29685]
[1735397013124,2.26096288,3374.6,3373.9,3.2078]
[1735397013433,0.74212,3374.4,3373.9,3.2078]
[1735397013631,0.29688,3374.0,3373.9,3.2078]
[1735397015130,3.2078,3374.4,3373.9,3.2078]
[1735397015327,0.29687,3374.2,3374.1,0.29686]
[1735397015633,3.2078,3374.4,3373.9,3.2078]
[1735397016128,0.29688,3374.0,3373.9,3.50468]
[1735397016335,0.29687,3374.2,3374.1,0.29686]
[1735397016534,3.2078,3374.4,3373.9,3.2078]
[1735397016734,3.50464,3374.4,3374.3,0.29685]
[1735397016933,0.29688,3374.1,3374.0,0.29687]
[1735397017132,0.6957,3374.6,3374.5,0.29683]
[1735397017328,6.68222673,3375.2,3374.7,0.29682]
[1735397017633,3.47442673,3375.2,3375.1,0.29678]
[1735397018228,0.6914,3375.5,3374.8,6.12363]
[1735397018430,0.6914,3375.5,3374.9,0.3710883]
[1735397018732,0.29676,3375.4,3375.3,0.29676]
[1735397020331,0.6914,3375.5,3374.8,5.3816]
[1735397020529,0.6914,3375.5,3375.0,0.29679]
[1735397020838,0.29678,3375.1,3375.0,0.29679]
[1735397021138,0.29678,3375.1,3374.4,5.38601982]
[1735397021139,0.29681,3374.8,3374.7,0.29681]
[1735397023032,3.2078,3375.1,3375.0,0.29679]
[1735397023432,0.29677,3375.3,3375.2,0.29677]
[1735397023737,0.7081,3375.7,3375.1,0.6461]
[1735397024131,0.29674,3375.6,3375.5,0.29674]
[1735397024332,0.7081,3375.7,3375.2,0.7018]
[1735397024532,0.29674,3375.6,3375.5,0.29674]
[1735397025235,3.2078,3375.8,3375.2,0.7018]
[1735397025632,0.29674,3375.6,3375.5,0.29674]
[1735397026336,0.29674,3375.7,3375.6,0.29673]
[1735397026729,3.2078,3375.8,3375.2,1.44373]
[1735397026933,0.29674,3375.6,3375.5,0.29674]
[1735397027132,3.2078,3375.8,3375.2,0.7018]
[1735397027337,3.47442673,3376.0,3375.9,0.29671]
[1735397028038,1.56526288,3376.2,3375.4,4.64391982]
[1735397028236,0.29674,3375.6,3375.5,0.29674]
[1735397028435,3.2078,3376.1,3375.4,4.64391982]
[1735397028632,0.7134,3376.0,3375.4,4.64391982]
[1735397028837,0.7134,3376.0,3375.5,0.7103]
[1735397029040,0.7134,3376.0,3375.9,0.29671]
[1735397029439,3.5045,3376.1,3376.0,0.2967]
[1735397029943,0.29673,3375.7,3375.6,0.29673]
[1735397030333,3.8529,3376.1,3375.3,0.6638]
[1735397030534,4.59464,3376.1,3375.5,0.29674]
[1735397030738,0.29676,3375.4,3375.3,0.96056]
[1735397031939,1.56526288,3375.9,3375.3,0.96056]
[1735397031940,0.29675,3375.5,3375.4,0.29675]
[1735397032340,0.29676,3375.4,3375.3,0.96056]
[1735397033645,0.29676,3375.4,3375.3,0.6638]
[1735397034748,0.29676,3375.4,3375.3,0.96057]
[1735397035044,0.29676,3375.4,3375.3,0.6638]
[1735397036633,0.29678,3375.2,3375.1,0.29678]
[1735397036938,0.29677,3375.3,3375.2,0.29677]
[1735397038444,3.2078,3375.5,3375.0,0.7103]
[1735397038641,0.29676,3375.4,3375.3,0.29676]
[1735397039543,0.29677,3375.3,3375.2,0.29677]
[1735397039750,0.7419,3375.4,3374.8,1.3307]
[1735397039946,0.29679,3375.1,3375.0,0.29679]
[1735397040853,0.29679,3375.1,3375.0,0.29678]
[1735397042345,3.94969,3375.5,3375.1,0.29678]
[1735397042346,0.29678,3375.2,3375.1,0.29678]
[1735397043254,3.2078,3375.5,3374.8,1.3307]
[1735397043450,0.29679,3375.1,3375.0,0.29679]
[1735397044356,5.44536288,3375.5,3374.8,1.3307]
[1735397044557,0.2968,3374.9,3374.8,1.3307]
[1735397045352,0.2968,3374.9,3374.8,0.29681]
[1735397045555,4.21632673,3375.4,3374.4,3.2078]
[1735397045864,0.29682,3374.8,3374.7,0.29681]
[1735397046157,4.21632673,3375.4,3374.4,3.2078]
[1735397046158,3.2078,3375.1,3374.4,3.2078]
[1735397046359,0.29681,3374.9,3374.8,0.2968]
[1735397046962,3.2078,3375.1,3374.4,3.94991]
[1735397046963,0.29679,3375.1,3375.0,0.29679]
[1735397047160,3.47442673,3375.4,3374.4,3.2078]
[1735397047357,3.47442673,3375.4,3375.3,0.29677]
[1735397047866,3.77118673,3375.4,3375.3,0.29677]
[1735397048167,0.29676,3375.4,3375.3,0.29677]
[1735397048366,1.56526288,3375.5,3375.1,1.4123]
[1735397048666,1.56526288,3375.5,3374.9,3.5046]
[1735397048667,0.29679,3375.0,3374.9,3.5046]
[1735397049568,0.29679,3375.0,3374.9,3.2078]
[1735397051774,0.29679,3375.0,3374.9,3.5046]
[1735397053173,0.29679,3375.0,3374.9,0.2968]
[1735397053376,1.56526288,3375.2,3374.6,3.2078]
[1735397053574,0.29681,3374.9,3374.8,0.2968]
[1735397058079,0.29679,3375.1,3375.0,0.29678]
[1735397058281,0.29682,3374.8,3374.7,0.29681]
[1735397059075,0.29682,3374.7,3374.6,3.50462]
[1735397059976,0.6472,3375.0,3374.6,3.2078]
[1735397060175,0.29682,3374.8,3374.7,0.29681]
[1735397062877,0.29683,3374.7,3374.6,0.29682]
[1735397063078,4.59699,3375.0,3374.5,0.6814]
[1735397063283,0.29684,3374.5,3374.4,0.29684]
[1735397063874,0.74203,3374.8,3374.3,6.01481982]
[1735397064078,0.29684,3374.4,3374.3,1.3709]
[1735397064278,0.29684,3374.4,3374.3,1.66775]
[1735397064885,0.29686,3374.2,3374.1,4.94078982]
[1735397065081,1.56526288,3374.3,3374.0,4.64391982]
[1735397065281,4.17497,3374.1,3374.0,4.64391982]
[1735397065687,0.29689,3373.9,3373.8,6.00533228]
[1735397065985,1.86215288,3373.9,3373.8,6.00533228]
[1735397066886,0.29691,3373.6,3373.5,0.6477]
[1735397073083,3.89310897,3373.9,3373.5,0.6477]
[1735397073284,2.32784609,3373.9,3373.6,0.6785]
[1735397073489,2.32784609,3373.9,3373.8,0.2969]
[1735397073681,6.99643914,3374.1,3373.6,1.3413]
[1735397073682,2.32784609,3374.0,3373.6,1.3413]
[1735397073881,2.32784609,3374.0,3373.9,0.29689]
[1735397075095,3.50468,3374.1,3373.6,1.3413]
[1735397075286,0.29688,3374.0,3373.9,0.29688]
[1735397075796,3.50468,3374.1,3374.0,0.29688]
[1735397076289,3.2078,3374.1,3374.0,0.29688]
[1735397077988,3.50467,3374.1,3374.0,0.29688]
[1735397080292,0.2969,3373.9,3373.8,0.29689]
[1735397081196,0.29691,3373.8,3373.7,0.2969]
[1735397084193,3.2078,3374.1,3373.6,1.3413]
[1735397084503,0.29689,3374.0,3373.9,0.29688]
[1735397088195,0.29688,3374.2,3374.1,0.29686]
[1735397089304,0.29688,3374.1,3374.0,0.29687]
[1735397089603,0.29691,3373.8,3373.7,0.2969]
[1735397089998,0.29691,3373.7,3373.6,1.3413]
[1735397090692,0.29691,3373.7,3373.6,1.63821]
[1735397091203,0.29691,3373.7,3373.6,1.3413]
[1735397091702,0.29691,3373.7,3373.6,1.63821]
[1735397092103,0.29691,3373.7,3373.6,1.3413]
[1735397092405,0.29691,3373.6,3373.5,0.6477]
[1735397092599,0.29691,3373.6,3373.5,0.94462]
[1735397093298,0.29691,3373.6,3373.5,0.6477]
[1735397093493,0.29691,3373.6,3373.5,0.94462]
[1735397093696,0.29691,3373.6,3373.5,0.6477]
[1735397095701,0.29691,3373.6,3373.5,0.94462]
[1735397095901,0.29691,3373.6,3373.5,0.6477]
[1735397096104,1.86217288,3373.6,3373.5,0.6477]
[1735397097910,0.29691,3373.6,3373.5,0.6477]
[1735397099106,0.29691,3373.6,3373.5,0.94462]
[1735397099807,0.29691,3373.6,3373.5,0.6477]
[1735397100000,2.32784609,3373.8,3373.4,0.29693]
[1735397100205,0.29692,3373.5,3373.4,0.29693]
[1735397100910,0.29694,3373.4,3373.3,0.29694]
[1735397102209,2.32784609,3373.7,3373.2,1.379]
[1735397102407,0.29692,3373.6,3373.5,0.29691]
[1735397102703,2.32784609,3373.7,3373.6,0.29691]
[1735397102903,2.40476914,3373.8,3373.7,0.29691]
[1735397103106,1.72407634,3374.0,3373.9,0.29689]
[1735397103405,4.6642298,3374.2,3374.1,0.29687]
[1735397103611,0.4301298,3374.2,3374.1,3.50467]
[1735397103814,0.0564298,3374.7,3374.6,0.29683]
[1735397104012,0.0564298,3374.7,3374.6,3.50463]
[1735397104903,0.0564298,3374.7,3374.6,1.03906481]
[1735397105104,0.0564298,3374.7,3374.6,0.66794994]
[1735397105305,0.0564298,3374.7,3374.6,1.0390618]
[1735397105506,3.63796,3375.4,3375.3,0.29677]
[1735397105706,3.2078,3375.4,3375.3,0.29677]
[1735397106009,0.29675,3375.5,3375.4,0.29675]
[1735397106202,0.6891,3375.8,3374.8,3.2078]
[1735397106403,0.29674,3375.6,3375.5,0.29675]
[1735397106907,0.6891,3375.8,3374.9,0.74201]
[1735397107215,0.7122,3375.9,3375.8,0.29672]
[1735397107409,0.74163,3376.7,3375.8,0.29672]
[1735397107410,0.29668,3376.4,3376.2,0.29668]
[1735397107605,0.96708,3376.4,3376.3,0.29668]
[1735397108302,0.96707,3376.4,3376.3,0.29668]
[1735397108609,0.29672,3375.9,3375.7,0.29673]
[1735397108808,4.77306288,3376.2,3375.2,1.252]
[1735397109010,0.29673,3375.7,3375.2,1.252]
[1735397109305,4.77306288,3376.2,3375.2,1.252]
[1735397109505,0.29672,3375.9,3375.7,0.29673]
[1735397109707,0.29671,3376.0,3375.8,0.29671]
[1735397110204,0.29669,3376.2,3376.0,0.2967]
[1735397110429,0.6704,3376.4,3375.9,3.2078]
[1735397110607,0.96708,3376.4,3376.2,0.29668]
[1735397110807,0.29668,3376.3,3376.1,0.29669]
[1735397111303,0.6704,3376.4,3375.6,3.2078]
[1735397111503,0.29673,3375.7,3375.6,3.50454]
[1735397111708,0.29673,3375.8,3375.7,0.29673]
[1735397111905,1.56526288,3376.2,3375.6,3.2078]
[1735397112212,0.29671,3376.0,3375.8,0.29672]
[1735397113212,0.29672,3375.9,3375.7,0.29673]
[1735397113415,0.29671,3376.0,3375.7,0.29672]
[1735397113708,1.56526288,3376.2,3375.1,3.2078]
[1735397113709,3.2078,3375.8,3375.1,3.2078]
[1735397113911,0.29675,3375.6,3375.3,0.29676]
[1735397114103,0.7174,3375.5,3375.4,0.29676]
[1735397114705,3.2078,3375.8,3375.1,5.51502288]
[1735397115007,0.6982,3375.9,3375.8,0.29672]
[1735397115611,0.7174,3376.1,3375.9,0.29671]
[1735397115813,1.0141,3376.1,3375.9,0.29671]
[1735397116515,0.7174,3376.1,3376.0,0.2967]
[1735397118209,0.7174,3376.1,3375.5,3.2078]
[1735397118516,1.0141,3376.1,3375.5,3.2078]
[1735397118717,0.7174,3376.1,3375.5,3.2078]
[1735397118918,3.8818,3376.3,3375.6,0.74186]
[1735397118919,3.2078,3376.3,3375.6,0.74186]
[1735397119217,3.2078,3376.3,3376.2,0.29669]
[1735397119716,0.6988,3376.4,3376.3,0.29668]
[1735397120309,0.99547,3376.4,3376.3,0.29668]
[1735397120614,0.29668,3376.3,3376.2,0.29668]
[1735397121111,0.6988,3376.4,3375.9,3.2078]
[1735397121416,0.29669,3376.2,3376.1,0.29669]
[1735397122014,0.6988,3376.4,3375.9,3.2078]
[1735397122220,0.6988,3376.4,3376.3,0.29668]
[1735397123010,0.99547,3376.4,3376.3,0.29668]
[1735397123418,0.6988,3376.4,3376.3,0.29668]
[1735397125320,3.2078,3376.9,3376.8,0.29663]
[1735397125618,0.691,3377.0,3376.9,0.29663]
[1735397127518,0.98762,3377.0,3376.9,0.29663]
[1735397127710,0.691,3377.0,3376.9,0.29663]
[1735397128917,0.691,3377.0,3376.7,3.2078]
[1735397129421,0.29663,3376.8,3376.7,3.50443]
[1735397129613,3.8988,3377.0,3376.3,4.4588]
[1735397130017,0.29665,3376.7,3376.6,0.29664]
[1735397130322,0.29665,3376.8,3376.7,0.29663]
[1735397131317,3.8988,3377.0,3376.7,0.29663]
[1735397131624,0.29665,3376.8,3376.7,0.29663]
[1735397132224,0.691,3377.0,3376.9,0.29663]
[1735397135019,0.2966,3377.3,3376.7,4.77306288]
[1735397135219,3.2078,3377.4,3377.3,0.29659]
[1735397135721,1.00766,3377.7,3377.6,0.29656]
[1735397136218,0.7111,3377.7,3377.6,0.29656]
[1735397137023,1.00766,3377.7,3377.6,0.29656]
[1735397142626,0.7111,3377.7,3377.6,0.29656]
[1735397142824,4.20383,3378.0,3377.9,0.29654]
[1735397143225,0.6873,3378.4,3377.9,1.86180288]
[1735397143430,0.9838,3378.4,3378.3,0.2965]
[1735397143627,3.2078,3379.2,3378.3,4.77306288]
[1735397143937,0.74113,3378.9,3378.3,3.2078]
[1735397144134,0.2965,3378.4,3378.3,0.29649]
[1735397144833,0.29653,3378.1,3378.0,0.29652]
[1735397145033,0.29653,3378.1,3377.7,0.29655]
[1735397145034,0.29656,3377.8,3377.7,0.29655]
[1735397145332,1.3718,3378.0,3377.3,1.25]
[1735397145532,0.29657,3377.6,3377.5,0.29656]
[1735397146328,0.29659,3377.4,3377.3,0.29658]
[1735397146521,3.2078,3377.7,3377.2,3.50439]
[1735397146522,0.29659,3377.3,3377.2,3.50439]
[1735397146727,1.67629,3377.3,3377.2,3.2078]
[1735397146931,1.67629,3377.3,3377.2,3.5044]
[1735397148924,1.67629,3377.3,3377.2,3.2078]
[1735397149327,1.3797,3377.3,3377.2,3.5044]
[1735397149529,0.6644,3377.3,3377.2,3.5044]
[1735397149737,0.6989,3377.5,3377.4,0.29658]
[1735397152533,0.99548,3377.5,3377.4,0.29658]
[1735397154332,0.6989,3377.5,3377.4,0.29658]
[1735397156040,0.6989,3377.5,3377.4,0.66740584]
[1735397157436,0.6989,3377.5,3377.4,0.29658]
[1735397157638,0.6989,3377.5,3377.4,0.6674164]
[1735397157837,0.6989,3377.5,3377.4,0.29658]
[1735397158035,0.6989,3377.5,3377.4,0.66741671]
[1735397158440,0.6989,3377.5,3377.4,0.29658]
[1735397158737,0.6989,3377.5,3377.2,3.2078]
[1735397159141,0.2966,3377.3,3377.2,3.5044]
[1735397159636,0.29659,3377.4,3377.3,0.29659]
[1735397160336,0.6989,3377.5,3377.2,3.2078]
[1735397160636,0.2966,3377.3,3376.7,0.74163]
[1735397160841,0.29663,3377.1,3377.0,0.29661]
[1735397162135,0.99548,3377.5,3377.4,0.29659]
[1735397163235,4.20328,3377.5,3377.4,0.29659]
[1735397163435,3.9067,3377.5,3377.4,0.29659]
[1735397163939,1.56526288,3378.2,3378.0,0.29654]
[1735397163940,3.2078,3378.1,3378.0,0.29654]
[1735397164339,3.2078,3379.0,3378.0,1.56526288]
[1735397164534,4.62341112,3378.6,3378.5,0.29649]
[1735397164940,7.83121112,3378.6,3378.5,0.29649]
[1735397165136,4.62341112,3378.6,3378.5,0.29649]
[1735397165944,5.217,3379.0,3378.2,3.2078]
[1735397166139,3.50431,3378.4,3378.3,0.2965]
[1735397166353,3.50431,3378.4,3377.9,7.6443632]
[1735397166354,3.2078,3378.8,3378.0,0.74133]
[1735397166545,2.0092,3379.0,3378.2,0.74129]
[1735397166836,2.0092,3379.0,3378.1,0.37075328]
[1735397166837,2.30565,3379.0,3378.9,0.29646]
[1735397167036,2.30565,3379.0,3378.3,0.74127]
[1735397167242,0.29648,3378.7,3378.4,0.2965]
[1735397167431,0.29647,3378.9,3378.3,0.74127]
[1735397167637,0.29647,3378.9,3378.8,0.29646]
[1735397168435,2.0092,3379.0,3378.3,0.74127]
[1735397168631,1.3498,3379.0,3378.9,0.29646]
[1735397168838,3.2078,3379.2,3379.1,0.29644]
[1735397169941,0.7002,3379.4,3378.9,1.56526288]
[1735397170145,0.7002,3379.4,3379.3,0.29642]
[1735397171136,0.7002,3379.4,3378.9,1.56526288]
[1735397171137,3.8647,3379.6,3379.5,0.2964]
[1735397171938,3.2078,3379.6,3379.5,0.2964]
[1735397172644,3.5042,3379.6,3379.5,0.2964]
[1735397172848,3.2078,3379.6,3378.8,3.2078]
[1735397173047,1.3793,3379.7,3378.5,0.74122]
[1735397173048,3.2078,3379.1,3378.5,0.74122]
[1735397173250,0.6685,3379.0,3378.9,0.29645]
[1735397173746,0.29646,3378.9,3378.8,0.29646]
[1735397173944,1.00726,3378.9,3378.8,0.29646]
[1735397174138,0.7108,3378.9,3378.2,6.9030132]
[1735397174336,3.2078,3378.7,3378.2,6.9030132]
[1735397174652,3.2078,3378.7,3378.6,0.29648]
[1735397174949,3.50427,3378.7,3378.6,0.29648]
[1735397175148,3.2078,3378.7,3378.1,0.74132]
[1735397175449,0.29654,3378.1,3378.0,0.29653]
[1735397175641,0.29655,3377.8,3377.7,7.1995732]
[1735397175839,0.29655,3377.8,3377.7,6.9030132]
[1735397176242,0.29656,3377.7,3377.6,0.29657]
[1735397176440,0.29658,3377.5,3377.4,0.29659]
[1735397176641,0.29658,3377.5,3377.3,1.249]
[1735397176642,0.2966,3377.3,3377.2,0.29661]
[1735397176946,0.29659,3377.5,3377.4,0.29658]
[1735397178253,0.2966,3377.3,3377.2,0.2966]
[1735397178450,0.29659,3377.4,3377.3,0.29659]
[1735397178753,3.50438,3377.5,3377.4,0.29659]
[1735397178953,3.2078,3377.5,3377.4,0.29659]
[1735397179251,0.6975,3377.8,3377.7,0.29656]
[1735397179544,3.8841,3378.0,3377.9,0.29655]
[1735397179952,5.28921112,3378.4,3377.9,3.2078]
[1735397180146,5.28921112,3378.4,3378.1,0.29652]
[1735397180147,0.29652,3378.2,3378.1,0.29652]
[1735397181844,0.6658,3378.4,3377.6,0.74143]
[1735397182048,0.29651,3378.3,3378.2,0.29651]
[1735397182552,0.29653,3378.2,3378.1,0.29652]
[1735397182947,0.29652,3378.3,3378.2,0.29651]
[1735397183655,0.29653,3378.2,3378.1,0.29652]
[1735397185152,0.6658,3378.4,3377.6,0.74143]
[1735397185455,0.29654,3378.1,3378.0,0.29653]
[1735397185859,0.6658,3378.4,3377.6,0.74143]
[1735397186079,0.6658,3378.4,3378.1,0.29652]
[1735397186080,0.29652,3378.2,3378.1,0.29652]
[1735397186555,0.6658,3378.4,3377.6,0.74143]
[1735397186758,0.96231,3378.4,3378.3,0.29651]
[1735397187151,0.6658,3378.4,3378.3,0.29651]
[1735397187654,0.9623,3378.4,3378.3,0.29651]
[1735397187852,0.6658,3378.4,3378.0,0.29653]
[1735397188057,0.29654,3378.1,3378.0,0.29653]